[Event "Late-Titled-Tuesday-Blitz-March-05-2024"]
[Site "Chess.com"]
[Date "2024.03.05"]
[Round "5"]
[White "Ducke13"]
[Black "PNEPaul"]
[Result "1-0"]
[WhiteElo "2386"]
[BlackElo "1928"]
[TimeControl "180+1"]
[EndTime "14:52:03 PST"]
[Termination "Ducke13 won on time"]

1. Nf3 {[%clk 0:03:00.9]} 1... a6 {[%clk 0:00:15.9]} 2. d4 {[%clk 0:02:50.5]}
2... d6 {[%clk 0:00:16]} 3. g3 {[%clk 0:02:44]} 3... g6 {[%clk 0:00:15]} 4. Bg2
{[%clk 0:02:44.9]} 4... h6 {[%clk 0:00:15.1]} 5. c4 {[%clk 0:02:44.5]} 5... Bg7
{[%clk 0:00:15.4]} 6. Nc3 {[%clk 0:02:45.4]} 6... Nd7 {[%clk 0:00:15.5]} 7. O-O
{[%clk 0:02:45.7]} 7... e6 {[%clk 0:00:15.7]} 8. e4 {[%clk 0:02:45.6]} 8... Ne7
{[%clk 0:00:15.9]} 9. Be3 {[%clk 0:02:44.6]} 9... O-O {[%clk 0:00:15.8]} 10. Qd2
{[%clk 0:02:44.7]} 10... Kh7 {[%clk 0:00:15.8]} 11. Rac1 {[%clk 0:02:42.5]}
11... e5 {[%clk 0:00:15.7]} 12. d5 {[%clk 0:02:38.1]} 12... f5 {[%clk
0:00:15.7]} 13. Ne1 {[%clk 0:02:28.8]} 13... g5 {[%clk 0:00:14.2]} 14. f4 {[%clk
0:02:24.6]} 14... exf4 {[%clk 0:00:06.5]} 15. gxf4 {[%clk 0:02:24]} 15... g4
{[%clk 0:00:05.3]} 16. Nd3 {[%clk 0:02:18.2]} 1-0

[Event "Late-Titled-Tuesday-Blitz-March-05-2024"]
[Site "Chess.com"]
[Date "2024.03.05"]
[Round "5"]
[White "Arlo2024"]
[Black "PapaieDudu"]
[Result "0-1"]
[WhiteElo "2287"]
[BlackElo "2433"]
[TimeControl "180+1"]
[EndTime "14:52:12 PST"]
[Termination "PapaieDudu won on time"]

1. e4 {[%clk 0:03:00.9]} 1... c5 {[%clk 0:02:59]} 2. Nc3 {[%clk 0:03:00.5]} 2...
a6 {[%clk 0:02:58.1]} 3. g3 {[%clk 0:03:01.4]} 3... e6 {[%clk 0:02:57.8]} 4. Bg2
{[%clk 0:03:02.3]} 4... b5 {[%clk 0:02:58.4]} 5. Nh3 {[%clk 0:03:01.6]} 5... Bb7
{[%clk 0:02:58.6]} 6. d3 {[%clk 0:03:01.5]} 6... d5 {[%clk 0:02:56.9]} 7. exd5
{[%clk 0:03:01]} 7... exd5 {[%clk 0:02:57.8]} 8. O-O {[%clk 0:02:59.4]} 8... Be7
{[%clk 0:02:58.2]} 9. Nf4 {[%clk 0:02:57.4]} 9... Nf6 {[%clk 0:02:58.3]} 10. Re1
{[%clk 0:02:45.3]} 10... O-O {[%clk 0:02:57.8]} 11. Ncxd5 {[%clk 0:02:38.7]}
11... Nxd5 {[%clk 0:02:56]} 12. Nxd5 {[%clk 0:02:32.4]} 12... Bxd5 {[%clk
0:02:55.2]} 13. Bxd5 {[%clk 0:02:31.3]} 13... Qxd5 {[%clk 0:02:55.7]} 14. Rxe7
{[%clk 0:02:31.4]} 14... Nc6 {[%clk 0:02:55.4]} 15. Re4 {[%clk 0:02:18.4]} 15...
Nd4 {[%clk 0:02:53]} 16. Bf4 {[%clk 0:01:00.8]} 16... f5 {[%clk 0:02:52.1]} 17.
Re3 {[%clk 0:00:58.8]} 17... Rae8 {[%clk 0:02:36.7]} 18. c4 {[%clk 0:00:44.5]}
18... Qc6 {[%clk 0:02:30.8]} 19. Be5 {[%clk 0:00:39.6]} 19... Rxe5 {[%clk
0:02:30.6]} 20. cxb5 {[%clk 0:00:36.7]} 20... axb5 {[%clk 0:02:30.3]} 21. Rxe5
{[%clk 0:00:14]} 21... Nf3+ {[%clk 0:02:30.5]} 22. Kf1 {[%clk 0:00:12.8]} 22...
Nxe5 {[%clk 0:02:28.5]} 23. Qb3+ {[%clk 0:00:09.4]} 23... c4 {[%clk 0:02:29.1]}
0-1

[Event "Late-Titled-Tuesday-Blitz-March-05-2024"]
[Site "Chess.com"]
[Date "2024.03.05"]
[Round "5"]
[White "cthulhuuu"]
[Black "Nouali_Mohamed"]
[Result "1-0"]
[WhiteElo "2448"]
[BlackElo "2542"]
[TimeControl "180+1"]
[EndTime "14:52:15 PST"]
[Termination "cthulhuuu won by checkmate"]

1. e4 {[%clk 0:03:00.9]} 1... c5 {[%clk 0:02:59.3]} 2. Nf3 {[%clk 0:03:00.9]}
2... Nc6 {[%clk 0:02:59.6]} 3. g3 {[%clk 0:03:01.3]} 3... Nf6 {[%clk 0:02:58.6]}
4. d3 {[%clk 0:03:00.9]} 4... d6 {[%clk 0:02:58.3]} 5. Bg2 {[%clk 0:03:00.3]}
5... g6 {[%clk 0:02:58.7]} 6. O-O {[%clk 0:03:00.2]} 6... Bg7 {[%clk 0:02:59.2]}
7. Re1 {[%clk 0:03:00.6]} 7... O-O {[%clk 0:02:57.5]} 8. e5 {[%clk 0:03:01.1]}
8... dxe5 {[%clk 0:02:39.4]} 9. Nxe5 {[%clk 0:03:02]} 9... Nxe5 {[%clk
0:02:22.9]} 10. Rxe5 {[%clk 0:03:02.9]} 10... Nd7 {[%clk 0:02:06.7]} 11. Re1
{[%clk 0:03:02.4]} 11... e5 {[%clk 0:02:03.5]} 12. Nc3 {[%clk 0:03:01.4]} 12...
Re8 {[%clk 0:01:59.4]} 13. h4 {[%clk 0:02:55.1]} 13... h5 {[%clk 0:01:58]} 14.
Bg5 {[%clk 0:02:52.2]} 14... f6 {[%clk 0:01:54.5]} 15. Be3 {[%clk 0:02:48.8]}
15... Bf8 {[%clk 0:01:47.9]} 16. g4 {[%clk 0:02:31.6]} 16... hxg4 {[%clk
0:01:15.8]} 17. Qxg4 {[%clk 0:02:32.5]} 17... Kg7 {[%clk 0:01:16.3]} 18. Be4
{[%clk 0:02:19.3]} 18... Re7 {[%clk 0:00:33.8]} 19. Qxg6+ {[%clk 0:02:05.1]}
19... Kh8 {[%clk 0:00:32]} 20. Qh5+ {[%clk 0:02:04.5]} 20... Kg8 {[%clk
0:00:26.7]} 21. Bd5+ {[%clk 0:02:04.6]} 21... Kg7 {[%clk 0:00:20.7]} 22. Qh6#
{[%clk 0:02:01.4]} 1-0

[Event "Late-Titled-Tuesday-Blitz-March-05-2024"]
[Site "Chess.com"]
[Date "2024.03.05"]
[Round "5"]
[White "emeli_chess"]
[Black "Vesapesa"]
[Result "1-0"]
[WhiteElo "2422"]
[BlackElo "2232"]
[TimeControl "180+1"]
[EndTime "14:52:20 PST"]
[Termination "emeli_chess won by resignation"]

1. d4 {[%clk 0:03:00.9]} 1... d5 {[%clk 0:02:59.7]} 2. c4 {[%clk 0:03:01.1]}
2... e6 {[%clk 0:02:59.8]} 3. Nc3 {[%clk 0:03:01.3]} 3... Nf6 {[%clk 0:02:59.7]}
4. cxd5 {[%clk 0:03:01.3]} 4... exd5 {[%clk 0:02:59.5]} 5. Bg5 {[%clk
0:03:01.8]} 5... Nbd7 {[%clk 0:02:59.2]} 6. e3 {[%clk 0:03:01.6]} 6... c6 {[%clk
0:02:58.7]} 7. Bd3 {[%clk 0:03:01.2]} 7... Be7 {[%clk 0:02:58.7]} 8. Nf3 {[%clk
0:03:01]} 8... Nf8 {[%clk 0:02:54.1]} 9. O-O {[%clk 0:02:55.9]} 9... Ne6 {[%clk
0:02:53.3]} 10. Bh4 {[%clk 0:02:51]} 10... g6 {[%clk 0:02:52.3]} 11. Rb1 {[%clk
0:02:43.3]} 11... Ng7 {[%clk 0:02:51.1]} 12. b4 {[%clk 0:02:38.4]} 12... O-O
{[%clk 0:02:47.3]} 13. b5 {[%clk 0:02:36.7]} 13... Ne4 {[%clk 0:02:40.6]} 14.
Bxe4 {[%clk 0:02:30.6]} 14... Bxh4 {[%clk 0:02:28.5]} 15. Bd3 {[%clk 0:02:28]}
15... Bg4 {[%clk 0:02:26.5]} 16. Be2 {[%clk 0:02:24.4]} 16... Qa5 {[%clk
0:02:08.4]} 17. Nxh4 {[%clk 0:02:14.5]} 17... Bxe2 {[%clk 0:01:30.2]} 18. Nxe2
{[%clk 0:02:13.4]} 18... Qxa2 {[%clk 0:01:30.1]} 19. Nc3 {[%clk 0:02:08.7]}
19... Qa5 {[%clk 0:01:26.6]} 20. Qb3 {[%clk 0:02:08.1]} 20... Qd8 {[%clk
0:01:22.7]} 21. Nf3 {[%clk 0:02:06.9]} 21... Ne6 {[%clk 0:01:07.2]} 22. bxc6
{[%clk 0:02:04.6]} 22... bxc6 {[%clk 0:01:08.1]} 23. Na4 {[%clk 0:02:03.5]}
23... Qa5 {[%clk 0:01:01.9]} 24. Qb4 {[%clk 0:01:58.9]} 24... Qa6 {[%clk
0:00:58.6]} 25. Nc5 {[%clk 0:01:55.8]} 25... Qc8 {[%clk 0:00:52.5]} 26. Rfc1
{[%clk 0:01:50.2]} 26... Nc7 {[%clk 0:00:47.4]} 27. Qb7 {[%clk 0:01:45.9]} 1-0

[Event "Late-Titled-Tuesday-Blitz-March-05-2024"]
[Site "Chess.com"]
[Date "2024.03.05"]
[Round "5"]
[White "sonson28291"]
[Black "DonBroca"]
[Result "0-1"]
[WhiteElo "2254"]
[BlackElo "2156"]
[TimeControl "180+1"]
[EndTime "14:52:26 PST"]
[Termination "DonBroca won by resignation"]

1. e4 {[%clk 0:03:00.9]} 1... c5 {[%clk 0:02:58.2]} 2. b4 {[%clk 0:02:59.6]}
2... cxb4 {[%clk 0:02:57.5]} 3. a3 {[%clk 0:02:59]} 3... d5 {[%clk 0:02:45.8]}
4. e5 {[%clk 0:02:58.9]} 4... e6 {[%clk 0:02:44.4]} 5. axb4 {[%clk 0:02:58.3]}
5... Bxb4 {[%clk 0:02:45.3]} 6. c3 {[%clk 0:02:58.5]} 6... Be7 {[%clk
0:02:40.2]} 7. d4 {[%clk 0:02:52.3]} 7... f5 {[%clk 0:02:32.5]} 8. f4 {[%clk
0:02:47.1]} 8... Nh6 {[%clk 0:02:30.7]} 9. Nf3 {[%clk 0:02:47]} 9... Nf7 {[%clk
0:02:29.4]} 10. Bd3 {[%clk 0:02:42.4]} 10... Bd7 {[%clk 0:02:24.9]} 11. O-O
{[%clk 0:02:42.3]} 11... Nc6 {[%clk 0:02:25]} 12. Ba3 {[%clk 0:02:41.2]} 12...
O-O {[%clk 0:02:21.3]} 13. Kh1 {[%clk 0:02:39.8]} 13... a6 {[%clk 0:02:20]} 14.
Bxe7 {[%clk 0:02:39.5]} 14... Qxe7 {[%clk 0:02:19.9]} 15. Rg1 {[%clk 0:02:38.9]}
15... Rac8 {[%clk 0:02:09]} 16. g4 {[%clk 0:02:35]} 16... fxg4 {[%clk
0:02:09.9]} 17. Rxg4 {[%clk 0:02:34.7]} 17... Nh6 {[%clk 0:02:08.9]} 18. Rg3
{[%clk 0:02:28.5]} 18... Rxf4 {[%clk 0:02:04.9]} 19. Nbd2 {[%clk 0:02:14.2]}
19... Rcf8 {[%clk 0:01:51.6]} 20. Ng5 {[%clk 0:02:03.9]} 20... Nf5 {[%clk
0:01:23.8]} 21. Bxf5 {[%clk 0:02:01.5]} 21... R8xf5 {[%clk 0:01:15.7]} 22. Qg1
{[%clk 0:01:54.6]} 22... Nd8 {[%clk 0:00:51.3]} 23. c4 {[%clk 0:01:38.5]} 23...
dxc4 {[%clk 0:00:47.7]} 24. Nxc4 {[%clk 0:01:34.5]} 24... Bc6+ {[%clk
0:00:47.5]} 0-1

[Event "Late-Titled-Tuesday-Blitz-March-05-2024"]
[Site "Chess.com"]
[Date "2024.03.05"]
[Round "5"]
[White "NCchamp"]
[Black "kagg1125"]
[Result "0-1"]
[WhiteElo "2333"]
[BlackElo "2526"]
[TimeControl "180+1"]
[EndTime "14:52:42 PST"]
[Termination "kagg1125 won by checkmate"]

1. d4 {[%clk 0:02:59.2]} 1... Nf6 {[%clk 0:02:57.5]} 2. Bg5 {[%clk 0:02:58.4]}
2... c5 {[%clk 0:02:56.5]} 3. d5 {[%clk 0:02:56.9]} 3... Qb6 {[%clk 0:02:52.5]}
4. Bxf6 {[%clk 0:02:57]} 4... gxf6 {[%clk 0:02:51.3]} 5. Qc1 {[%clk 0:02:57.3]}
5... d6 {[%clk 0:02:40.7]} 6. c4 {[%clk 0:02:55.6]} 6... h5 {[%clk 0:02:38.8]}
7. Nc3 {[%clk 0:02:53.7]} 7... Bh6 {[%clk 0:02:35.9]} 8. e3 {[%clk 0:02:53.6]}
8... Nd7 {[%clk 0:02:36.2]} 9. Nf3 {[%clk 0:02:39.6]} 9... Ne5 {[%clk
0:02:29.5]} 10. Nxe5 {[%clk 0:02:39.9]} 10... fxe5 {[%clk 0:02:25.7]} 11. Bd3
{[%clk 0:02:40.8]} 11... Rg8 {[%clk 0:02:16]} 12. Rg1 {[%clk 0:02:05.8]} 12...
Bd7 {[%clk 0:01:55.1]} 13. Qc2 {[%clk 0:01:57]} 13... f5 {[%clk 0:01:46.9]} 14.
e4 {[%clk 0:01:53.9]} 14... fxe4 {[%clk 0:01:35]} 15. Bxe4 {[%clk 0:01:54.8]}
15... O-O-O {[%clk 0:01:35.2]} 16. Bf5 {[%clk 0:01:19.1]} 16... Bxf5 {[%clk
0:01:33.2]} 17. Qxf5+ {[%clk 0:01:20]} 17... Kb8 {[%clk 0:01:34.1]} 18. Qc2
{[%clk 0:01:15.5]} 18... Rdf8 {[%clk 0:01:33.4]} 19. f3 {[%clk 0:01:02.5]} 19...
Rxf3 {[%clk 0:01:29]} 20. Qh7 {[%clk 0:00:58.2]} 20... Qxb2 {[%clk 0:01:07.8]}
21. Qxg8+ {[%clk 0:00:54.9]} 21... Rf8 {[%clk 0:01:07.3]} 22. Qg6 {[%clk
0:00:51.9]} 22... Qd2# {[%clk 0:01:05.4]} 0-1

[Event "Late-Titled-Tuesday-Blitz-March-05-2024"]
[Site "Chess.com"]
[Date "2024.03.05"]
[Round "5"]
[White "Oleksandr_Bortnyk"]
[Black "Lennis93"]
[Result "1-0"]
[WhiteElo "3001"]
[BlackElo "2701"]
[TimeControl "180+1"]
[EndTime "14:52:45 PST"]
[Termination "Oleksandr_Bortnyk won by resignation"]

1. e4 {[%clk 0:02:48.4]} 1... e6 {[%clk 0:02:58.7]} 2. Nf3 {[%clk 0:02:45.3]}
2... d5 {[%clk 0:02:58.9]} 3. e5 {[%clk 0:02:46.2]} 3... c5 {[%clk 0:02:58.5]}
4. d4 {[%clk 0:02:47.1]} 4... Nc6 {[%clk 0:02:58.1]} 5. Bd3 {[%clk 0:02:48]}
5... cxd4 {[%clk 0:02:55.3]} 6. O-O {[%clk 0:02:48.4]} 6... a5 {[%clk
0:02:53.8]} 7. a4 {[%clk 0:02:45.4]} 7... Bc5 {[%clk 0:02:50.4]} 8. Nbd2 {[%clk
0:02:45.4]} 8... Nge7 {[%clk 0:02:46]} 9. Nb3 {[%clk 0:02:46]} 9... b6 {[%clk
0:02:42]} 10. Bf4 {[%clk 0:02:43.9]} 10... h6 {[%clk 0:02:32.1]} 11. h4 {[%clk
0:02:43.3]} 11... Ba6 {[%clk 0:02:19.7]} 12. Bb5 {[%clk 0:02:43.2]} 12... Bxb5
{[%clk 0:02:09.8]} 13. axb5 {[%clk 0:02:44.1]} 13... Na7 {[%clk 0:02:09.6]} 14.
Nfxd4 {[%clk 0:02:28.7]} 14... Bxd4 {[%clk 0:02:09.1]} 15. Nxd4 {[%clk 0:02:29]}
15... Ng6 {[%clk 0:02:09]} 16. Bg3 {[%clk 0:02:26.8]} 16... h5 {[%clk
0:01:15.6]} 17. Ra4 {[%clk 0:02:25.4]} 17... Rc8 {[%clk 0:01:12.7]} 18. c3
{[%clk 0:02:22.5]} 18... Rc4 {[%clk 0:01:07.6]} 19. Rxc4 {[%clk 0:02:12.2]}
19... dxc4 {[%clk 0:01:08.5]} 20. Qe2 {[%clk 0:02:13]} 20... Qd5 {[%clk
0:01:05.9]} 21. Rd1 {[%clk 0:02:13.3]} 21... Qc5 {[%clk 0:00:55.5]} 22. Qe4
{[%clk 0:02:13.4]} 22... O-O {[%clk 0:00:54]} 23. Nxe6 {[%clk 0:02:13.5]} 23...
fxe6 {[%clk 0:00:37]} 24. Qxg6 {[%clk 0:02:13.8]} 24... Qc8 {[%clk 0:00:35.3]}
25. Rd6 {[%clk 0:02:11.7]} 25... Nxb5 {[%clk 0:00:31.5]} 26. Rxe6 {[%clk
0:02:11.3]} 26... Qd7 {[%clk 0:00:26.2]} 27. Rxb6 {[%clk 0:02:08.2]} 27... a4
{[%clk 0:00:20.7]} 28. e6 {[%clk 0:02:03.8]} 28... Qd1+ {[%clk 0:00:20]} 29. Kh2
{[%clk 0:02:03.8]} 29... Qd5 {[%clk 0:00:08.3]} 30. e7 {[%clk 0:02:01.6]} 1-0

[Event "Late-Titled-Tuesday-Blitz-March-05-2024"]
[Site "Chess.com"]
[Date "2024.03.05"]
[Round "5"]
[White "pooh2012"]
[Black "Supelyel"]
[Result "1-0"]
[WhiteElo "2537"]
[BlackElo "2381"]
[TimeControl "180+1"]
[EndTime "14:52:46 PST"]
[Termination "pooh2012 won by resignation"]

1. d4 {[%clk 0:03:00.9]} 1... d6 {[%clk 0:02:59.3]} 2. Nf3 {[%clk 0:02:59.9]}
2... Nf6 {[%clk 0:02:58.8]} 3. Bg5 {[%clk 0:02:58.9]} 3... Nbd7 {[%clk
0:02:58.7]} 4. c4 {[%clk 0:02:55.8]} 4... e5 {[%clk 0:02:58.1]} 5. Nc3 {[%clk
0:02:55]} 5... Be7 {[%clk 0:02:57.4]} 6. g3 {[%clk 0:02:52.9]} 6... c6 {[%clk
0:02:57.3]} 7. Bg2 {[%clk 0:02:51.6]} 7... O-O {[%clk 0:02:57.1]} 8. O-O {[%clk
0:02:49.4]} 8... Qc7 {[%clk 0:02:47.2]} 9. Qc2 {[%clk 0:02:34.1]} 9... Re8
{[%clk 0:02:46.9]} 10. Rfd1 {[%clk 0:02:30.1]} 10... h6 {[%clk 0:02:46.8]} 11.
Bc1 {[%clk 0:02:16.2]} 11... Bf8 {[%clk 0:02:31.6]} 12. b3 {[%clk 0:02:13.7]}
12... a6 {[%clk 0:02:07.5]} 13. Ba3 {[%clk 0:01:52.5]} 13... e4 {[%clk
0:01:43.9]} 14. Ne1 {[%clk 0:01:32.9]} 14... d5 {[%clk 0:01:42.7]} 15. Bxf8
{[%clk 0:01:30.9]} 15... Nxf8 {[%clk 0:01:37.4]} 16. cxd5 {[%clk 0:01:27.8]}
16... cxd5 {[%clk 0:01:37.3]} 17. Nxe4 {[%clk 0:01:24.3]} 17... Qd6 {[%clk
0:00:39]} 18. Nxd6 {[%clk 0:01:01.8]} 1-0

[Event "Late-Titled-Tuesday-Blitz-March-05-2024"]
[Site "Chess.com"]
[Date "2024.03.05"]
[Round "5"]
[White "aranibos"]
[Black "LUISMIGUELOV"]
[Result "1-0"]
[WhiteElo "2274"]
[BlackElo "2154"]
[TimeControl "180+1"]
[EndTime "14:53:04 PST"]
[Termination "aranibos won by resignation"]

1. d4 {[%clk 0:03:00.9]} 1... d5 {[%clk 0:02:59]} 2. Nf3 {[%clk 0:02:59.3]} 2...
Bf5 {[%clk 0:02:57.8]} 3. Bf4 {[%clk 0:02:57.2]} 3... c6 {[%clk 0:02:57]} 4. e3
{[%clk 0:02:55.9]} 4... e6 {[%clk 0:02:56.9]} 5. Bd3 {[%clk 0:02:51.3]} 5...
Bxd3 {[%clk 0:02:55.4]} 6. Qxd3 {[%clk 0:02:51.7]} 6... f5 {[%clk 0:02:55.4]} 7.
a3 {[%clk 0:02:25.8]} 7... Nf6 {[%clk 0:02:53.8]} 8. c4 {[%clk 0:02:21]} 8...
Ne4 {[%clk 0:02:51.1]} 9. O-O {[%clk 0:02:18.7]} 9... Bd6 {[%clk 0:02:49.5]} 10.
Bxd6 {[%clk 0:02:13.3]} 10... Qxd6 {[%clk 0:02:48.4]} 11. Ne5 {[%clk 0:02:13.8]}
11... Nd7 {[%clk 0:02:48.1]} 12. f3 {[%clk 0:02:06.5]} 12... Nef6 {[%clk
0:02:19.4]} 13. Nxd7 {[%clk 0:01:49.5]} 13... Qxd7 {[%clk 0:02:18.4]} 14. Nc3
{[%clk 0:01:49.5]} 14... O-O {[%clk 0:02:17.5]} 15. Rad1 {[%clk 0:01:48.5]}
15... Rad8 {[%clk 0:02:15.7]} 16. e4 {[%clk 0:01:35.7]} 16... fxe4 {[%clk
0:02:15.1]} 17. fxe4 {[%clk 0:01:36]} 17... Nxe4 {[%clk 0:02:14.9]} 18. Rxf8+
{[%clk 0:01:31.8]} 18... Rxf8 {[%clk 0:02:09.1]} 19. Nxe4 {[%clk 0:01:32.3]}
19... dxe4 {[%clk 0:02:08.2]} 20. Qxe4 {[%clk 0:01:33]} 20... Rf6 {[%clk
0:02:02.5]} 21. h3 {[%clk 0:01:18.7]} 21... g6 {[%clk 0:01:57.6]} 22. Qe5 {[%clk
0:01:17.7]} 22... Rf8 {[%clk 0:01:43.3]} 23. Re1 {[%clk 0:01:15.5]} 23... Kf7
{[%clk 0:01:27.2]} 24. Rf1+ {[%clk 0:01:12.3]} 24... Kg8 {[%clk 0:01:26.7]} 25.
Rxf8+ {[%clk 0:01:11.7]} 25... Kxf8 {[%clk 0:01:26.2]} 26. Qh8+ {[%clk
0:01:12.2]} 26... Ke7 {[%clk 0:01:24.5]} 27. Qxh7+ {[%clk 0:01:11.7]} 27... Kd6
{[%clk 0:01:24.9]} 28. Qxd7+ {[%clk 0:01:07.8]} 28... Kxd7 {[%clk 0:01:24.4]}
29. Kf2 {[%clk 0:01:06.9]} 29... c5 {[%clk 0:01:23.1]} 30. Ke3 {[%clk
0:01:04.3]} 30... cxd4+ {[%clk 0:01:22.3]} 31. Kxd4 {[%clk 0:01:04.5]} 31... Kd6
{[%clk 0:01:19.5]} 32. b4 {[%clk 0:01:04.8]} 32... b6 {[%clk 0:01:18.2]} 33. h4
{[%clk 0:01:03.8]} 33... a5 {[%clk 0:01:15.8]} 34. g4 {[%clk 0:01:02.5]} 34...
axb4 {[%clk 0:01:15.8]} 35. axb4 {[%clk 0:01:02]} 35... e5+ {[%clk 0:01:15.3]}
36. Ke4 {[%clk 0:01:02.2]} 36... Ke6 {[%clk 0:01:14.7]} 37. h5 {[%clk
0:01:02.5]} 37... gxh5 {[%clk 0:01:13.4]} 38. gxh5 {[%clk 0:01:02.8]} 38... Kf6
{[%clk 0:01:11.9]} 39. h6 {[%clk 0:01:02.9]} 1-0

[Event "Late-Titled-Tuesday-Blitz-March-05-2024"]
[Site "Chess.com"]
[Date "2024.03.05"]
[Round "5"]
[White "Akhayan"]
[Black "TheMagician"]
[Result "1-0"]
[WhiteElo "2396"]
[BlackElo "2210"]
[TimeControl "180+1"]
[EndTime "14:53:21 PST"]
[Termination "Akhayan won on time"]

1. e4 {[%clk 0:03:00.9]} 1... e6 {[%clk 0:02:53.2]} 2. d4 {[%clk 0:03:00.3]}
2... d5 {[%clk 0:02:53.2]} 3. Nc3 {[%clk 0:02:59.2]} 3... Bb4 {[%clk 0:02:51.6]}
4. exd5 {[%clk 0:02:58.3]} 4... exd5 {[%clk 0:02:50.8]} 5. Qf3 {[%clk 0:02:59]}
5... Be6 {[%clk 0:02:33.7]} 6. Bd3 {[%clk 0:02:57.9]} 6... Nc6 {[%clk
0:02:27.1]} 7. Ne2 {[%clk 0:02:57.2]} 7... Nge7 {[%clk 0:02:06.9]} 8. O-O {[%clk
0:02:55.9]} 8... O-O {[%clk 0:01:56.2]} 9. Be3 {[%clk 0:02:55.3]} 9... Qd7
{[%clk 0:01:49.9]} 10. h3 {[%clk 0:02:54.6]} 10... a6 {[%clk 0:01:47]} 11. Nf4
{[%clk 0:02:52.7]} 11... Bxc3 {[%clk 0:01:33.6]} 12. bxc3 {[%clk 0:02:52.2]}
12... Bf5 {[%clk 0:01:09.4]} 13. Rab1 {[%clk 0:02:43.1]} 13... Bxd3 {[%clk
0:01:06.2]} 14. Nxd3 {[%clk 0:02:29.6]} 14... b6 {[%clk 0:01:05.8]} 15. Qg3
{[%clk 0:02:30.3]} 15... Nf5 {[%clk 0:01:00]} 16. Qg4 {[%clk 0:02:28.2]} 16...
Rad8 {[%clk 0:00:56]} 17. Bg5 {[%clk 0:02:24.3]} 17... f6 {[%clk 0:00:55.6]} 18.
Bf4 {[%clk 0:02:23.6]} 18... Nd6 {[%clk 0:00:30.9]} 19. Qf3 {[%clk 0:02:22.4]}
19... Nc4 {[%clk 0:00:28.2]} 20. Qg3 {[%clk 0:02:13.7]} 20... Rc8 {[%clk
0:00:22.1]} 21. Rfe1 {[%clk 0:02:10]} 21... Kh8 {[%clk 0:00:21.3]} 22. Re2
{[%clk 0:02:02]} 22... g5 {[%clk 0:00:16]} 23. Be3 {[%clk 0:01:42.8]} 23... Rce8
{[%clk 0:00:11.4]} 24. Rbe1 {[%clk 0:01:43.1]} 24... Re7 {[%clk 0:00:07.5]} 25.
Bxg5 {[%clk 0:01:28.1]} 25... Rxe2 {[%clk 0:00:04]} 26. Rxe2 {[%clk 0:01:28.4]}
26... fxg5 {[%clk 0:00:03.5]} 27. Qxg5 {[%clk 0:01:28.6]} 1-0

[Event "Late-Titled-Tuesday-Blitz-March-05-2024"]
[Site "Chess.com"]
[Date "2024.03.05"]
[Round "5"]
[White "JSPrepz"]
[Black "lefonghua"]
[Result "1-0"]
[WhiteElo "2839"]
[BlackElo "2610"]
[TimeControl "180+1"]
[EndTime "14:53:29 PST"]
[Termination "JSPrepz won by resignation"]

1. e4 {[%clk 0:03:00.9]} 1... c5 {[%clk 0:02:59.9]} 2. Nf3 {[%clk 0:02:59.7]}
2... g6 {[%clk 0:03:00.2]} 3. c3 {[%clk 0:02:58.8]} 3... Nc6 {[%clk 0:03:00.4]}
4. d4 {[%clk 0:02:56.7]} 4... d5 {[%clk 0:02:59.1]} 5. exd5 {[%clk 0:02:54.9]}
5... Qxd5 {[%clk 0:02:58.8]} 6. Nbd2 {[%clk 0:02:55.4]} 6... Bg7 {[%clk
0:02:37.6]} 7. Bc4 {[%clk 0:02:55.1]} 7... Qd8 {[%clk 0:02:37.2]} 8. dxc5 {[%clk
0:02:51.8]} 8... Nf6 {[%clk 0:02:32.2]} 9. O-O {[%clk 0:02:51.7]} 9... O-O
{[%clk 0:02:32.3]} 10. Qe2 {[%clk 0:02:44.4]} 10... Qc7 {[%clk 0:02:21.2]} 11.
h3 {[%clk 0:02:39.6]} 11... Na5 {[%clk 0:02:06.6]} 12. Bd3 {[%clk 0:02:35.3]}
12... Qxc5 {[%clk 0:01:35.5]} 13. b4 {[%clk 0:02:32.1]} 13... Qxc3 {[%clk
0:01:35.5]} 14. Rb1 {[%clk 0:02:32.8]} 14... Rd8 {[%clk 0:01:12.9]} 15. Bb5
{[%clk 0:02:19.3]} 15... a6 {[%clk 0:00:43]} 16. Bb2 {[%clk 0:02:08.8]} 16...
Qc7 {[%clk 0:00:43]} 17. Rfc1 {[%clk 0:01:55.5]} 17... Qb6 {[%clk 0:00:42.3]}
18. Ba4 {[%clk 0:01:31.1]} 18... Nc6 {[%clk 0:00:41.7]} 19. Nc4 {[%clk
0:01:19.4]} 19... Qc7 {[%clk 0:00:40.6]} 20. Nce5 {[%clk 0:01:15.6]} 20... Bd7
{[%clk 0:00:38.6]} 21. Bb3 {[%clk 0:01:15.9]} 21... Be8 {[%clk 0:00:36]} 22. Ng5
{[%clk 0:01:14.5]} 22... Nd5 {[%clk 0:00:29.6]} 23. Nexf7 {[%clk 0:01:07.5]}
23... Bxf7 {[%clk 0:00:21.5]} 24. Nxf7 {[%clk 0:01:04.4]} 24... Kxf7 {[%clk
0:00:17.5]} 25. Qf3+ {[%clk 0:01:03.9]} 25... Bf6 {[%clk 0:00:17.5]} 26. Bxd5+
{[%clk 0:01:03.5]} 26... Kg7 {[%clk 0:00:18.1]} 27. Bxc6 {[%clk 0:01:00]} 27...
bxc6 {[%clk 0:00:18.6]} 28. Rxc6 {[%clk 0:00:59.9]} 1-0